bitfinex/quotes_ETHUSD_20240729
["timestamp","ask_amount","ask_price","bid_price","bid_amount"]
[1722243836898,0.12899248,3385.1,3385.0,2.4378]
[1722243838234,2.17119145,3385.4,3385.0,2.4378]
[1722243838537,0.12898576,3385.1,3385.0,2.4378]
[1722243840535,0.12898576,3385.1,3385.0,4.85493702]
[1722243840712,2.17119145,3385.5,3385.1,2.4823]
[1722243841038,2.17119145,3385.5,3385.0,2.47621251]
[1722243841039,0.12897689,3385.4,3385.3,2.4823]
[1722243841214,0.1289773,3385.4,3385.3,2.4823]
[1722243841736,4.53368053,3385.6,3385.3,2.4823]
[1722243842053,0.12897728,3385.4,3385.3,2.4823]
[1722243842808,2.49205728,3385.4,3385.3,2.4823]
[1722243843028,2.49205728,3385.4,3385.1,19.37007017]
[1722243843029,2.36322,3385.2,3385.1,19.37007017]
[1722243843235,2.49219728,3385.2,3385.1,19.37007017]
[1722243843946,4.66300284,3385.2,3385.1,19.37007017]
[1722243844257,2.492212,3385.2,3385.1,19.37007017]
[1722243844822,4.855432,3385.2,3385.1,19.37007017]
[1722243845257,4.855432,3385.2,3385.1,19.36786517]
[1722243847166,4.72644,3385.2,3385.1,19.36786517]
[1722243847333,2.36329,3385.1,3385.0,2.2907]
[1722243847534,2.49228655,3385.1,3385.0,2.2907]
[1722243849161,2.49228655,3385.1,3385.0,2.27817122]
[1722243850560,2.36322,3385.2,3385.0,2.27817122]
[1722243850765,0.12899608,3385.1,3385.0,2.27817122]
[1722243851722,2.36312,3385.4,3385.0,2.27817122]
[1722243852064,0.1289805,3385.3,3385.0,2.27817122]
[1722243852261,0.1289805,3385.2,3385.0,2.27817122]
[1722243852463,2.36312,3385.4,3385.0,2.27817122]
[1722243852785,2.49215433,3385.3,3385.0,2.27817122]
[1722243853078,0.12898433,3385.2,3385.0,2.27817122]
[1722243853418,2.36309,3385.4,3385.0,2.27817122]
[1722243854063,0.12898147,3385.3,3385.0,2.27817122]
[1722243854266,2.36309,3385.4,3385.1,2.2784]
[1722243854451,0.12898207,3385.2,3385.1,2.2784]
[1722243854933,3.43402,3385.5,3385.1,2.2784]
[1722243855146,0.12897939,3385.4,3385.3,2.4889]
[1722243856269,0.12897874,3385.4,3385.3,2.4889]
[1722243856984,2.17023844,3385.6,3385.3,2.4889]
[1722243857273,0.12897948,3385.4,3385.3,2.4889]
[1722243858497,2.17023844,3385.8,3385.3,3.919335]
[1722243858644,2.17023844,3386.1,3385.4,4.74069722]
[1722243858851,0.12895938,3386.0,3385.5,2.3194]
[1722243859068,2.36249,3386.3,3385.7,2.3194]
[1722243859069,0.12895938,3385.9,3385.7,2.3194]
[1722243859277,2.36249,3386.3,3385.9,2.3194]
[1722243859587,0.12895358,3386.2,3385.9,2.3194]
[1722243859747,0.12895358,3386.1,3385.9,2.3194]
[1722243859953,2.36249,3386.3,3385.9,2.3194]
[1722243860265,2.36253,3386.2,3385.9,2.3194]
[1722243860439,2.3626,3386.1,3385.9,2.3194]
[1722243860638,1.071,3386.2,3385.9,2.3194]
[1722243861151,0.1289575,3386.1,3385.9,2.3194]
[1722243861372,3.43354,3386.2,3385.9,2.3194]
[1722243861674,0.12895759,3386.1,3385.9,2.3194]
[1722243861870,3.43354,3386.2,3385.9,2.3194]
[1722243862037,0.12895639,3386.1,3385.9,2.3194]
[1722243862242,3.43354,3386.2,3385.9,2.3194]
[1722243862550,0.1289564,3386.1,3385.9,2.3194]
[1722243862737,3.43354,3386.2,3385.9,2.3194]
[1722243862939,0.12895642,3386.1,3385.9,2.3194]
[1722243863180,3.43354,3386.2,3385.9,2.3194]
[1722243863337,0.1289564,3386.1,3385.9,2.3194]
[1722243863732,3.43354,3386.2,3385.9,2.3194]
[1722243864043,0.12895709,3386.1,3385.9,2.3194]
[1722243864349,3.43354,3386.2,3385.9,2.3194]
[1722243865182,2.16725748,3386.5,3386.0,0.05906249]
[1722243865183,4.52957748,3386.5,3386.0,0.05906249]
[1722243865332,2.16725748,3386.7,3386.1,2.4268]
[1722243865537,3.98313,3386.8,3386.3,2.4268]
[1722243865839,3.43313,3386.8,3386.3,2.4268]
[1722243866037,3.43298,3387.0,3386.3,2.48585566]
[1722243866279,0.12892842,3386.9,3386.3,2.48585566]
[1722243866499,2.36205,3386.9,3386.3,2.48585566]
[1722243866709,2.36211,3386.8,3386.3,2.48585566]
[1722243867037,3.43298,3387.0,3386.3,2.48585566]
[1722243867236,4.58594913,3387.2,3386.3,2.48585566]
[1722243867514,2.36204,3386.9,3386.3,2.48585566]
[1722243867730,2.36213,3386.8,3386.3,2.48585566]
[1722243868022,2.36218,3386.7,3386.3,2.4268]
[1722243869121,4.72413,3386.9,3386.4,0.05905292]
[1722243869422,2.36204,3386.9,3386.5,2.4934]
[1722243870479,2.22250675,3387.3,3386.5,2.4934]
[1722243870480,2.36197,3387.0,3386.5,2.4934]
[1722243870916,2.36204,3386.9,3386.5,2.4934]
[1722243882701,2.3619,3387.1,3386.5,2.4934]
[1722243882898,2.3619,3387.1,3386.6,2.51284714]
[1722243884017,2.3619,3387.1,3386.8,2.4355]
[1722243885673,2.36197,3387.0,3386.8,2.4355]
[1722243886529,2.36204,3386.9,3386.8,2.4355]
[1722243889252,3.43204,3386.9,3386.8,2.4355]
[1722243890174,1.07,3386.9,3386.8,2.4355]
[1722243890576,2.3619,3387.1,3386.8,2.4355]
[1722243890577,3.4319,3387.1,3386.8,2.4355]
[1722243892970,2.36197,3387.0,3386.8,2.4355]
[1722243895471,1.07,3387.1,3386.8,2.4355]
[1722243896687,3.4319,3387.1,3386.8,2.4355]
[1722243896870,2.3619,3387.1,3386.8,2.4355]
[1722243897070,2.36183,3387.2,3386.8,2.4355]
[1722243897295,1.19891894,3387.1,3386.8,2.4355]
[1722243897480,1.07,3387.1,3386.8,2.4355]
[1722243898488,2.36183,3387.2,3386.8,2.4355]
[1722243898708,1.19891872,3387.1,3386.8,2.4355]
[1722243898923,1.07,3387.1,3386.8,2.4355]
[1722243899223,3.4319,3387.1,3386.8,2.4355]
[1722243899525,1.07,3387.1,3386.8,2.4355]
[1722243899723,0.12891869,3387.0,3386.8,2.4355]
[1722243899933,3.23686431,3387.3,3386.8,2.49454725]
[1722243900158,0.12891236,3387.2,3387.0,2.4518]
[1722243900290,2.51202,3387.4,3387.0,2.4518]
[1722243900491,0.12890981,3387.3,3387.0,2.4518]
[1722243900725,2.51202,3387.4,3387.0,2.4518]
[1722243900927,0.1289085,3387.3,3387.0,2.4518]
[1722243901146,0.1289085,3387.2,3387.0,2.4518]
[1722243901321,2.51202,3387.4,3387.0,2.4518]
[1722243901523,0.12890658,3387.3,3387.0,2.4518]
[1722243901700,2.51202,3387.4,3387.0,2.4518]
[1722243902032,0.12890676,3387.3,3387.0,2.4518]
[1722243902232,2.51202,3387.4,3387.0,2.4518]
[1722243902439,0.12890841,3387.2,3387.0,2.4518]
[1722243902632,0.12890841,3387.1,3387.0,2.4518]
[1722243902798,0.15029,3387.4,3387.0,2.4518]
[1722243902999,0.12890491,3387.3,3387.0,2.4518]
[1722243903334,1.22029,3387.4,3387.0,2.4518]
[1722243903335,0.12890491,3387.2,3387.0,2.4518]
[1722243903489,0.12890491,3387.1,3387.0,2.4518]
[1722243904135,2.49080491,3387.1,3387.0,2.4518]
[1722243904304,4.66034789,3387.1,3387.0,2.4518]
[1722243904507,2.49082012,3387.1,3387.0,2.4518]
[1722243904866,2.2993259,3387.1,3387.0,2.4518]
[1722243905155,0.1289174,3387.1,3387.0,2.4518]
[1722243908446,0.12891041,3387.1,3387.0,2.4518]
[1722243909299,0.12891041,3387.1,3387.0,7.06068533]
[1722243909600,0.15029,3387.4,3387.1,2.3555]
[1722243909804,0.12889632,3387.3,3387.1,2.41454014]
[1722243910029,0.12889224,3387.2,3387.1,2.41454014]
[1722243910629,0.12889224,3387.2,3387.1,2.3555]
[1722243910829,1.19889224,3387.2,3387.1,2.3555]
[1722243911404,3.24178021,3387.2,3387.1,2.3555]
[1722243911609,3.37069111,3387.2,3387.1,2.3555]
[1722243911859,1.07,3387.2,3387.1,2.3555]
[1722243912167,0.12891052,3387.2,3387.1,2.3555]
[1722243912342,0.12891052,3387.2,3387.1,3.14124958]
[1722243912508,1.19891052,3387.2,3387.1,2.3555]
[1722243913358,0.12891052,3387.2,3387.1,2.3555]
[1722243913513,1.19891052,3387.2,3387.1,2.3555]
[1722243914020,1.07,3387.2,3387.1,2.3555]
[1722243914222,1.19889678,3387.2,3387.1,2.3555]
[1722243914654,0.12889678,3387.2,3387.1,2.3555]
[1722243914958,0.12889643,3387.2,3387.1,2.3555]
[1722243915363,0.12889643,3387.2,3387.1,7.12593852]
[1722243915655,0.15029,3387.4,3387.3,2.3692]
[1722243915867,0.27918044,3387.4,3387.3,2.3692]
[1722243916645,0.15029,3387.4,3387.3,2.42079902]
[1722243916815,0.15029,3387.4,3387.3,5.29436192]
[1722243917508,0.15029,3387.4,3387.3,2.93260192]
[1722243918307,0.15029,3387.4,3387.3,5.29436192]
[1722243919433,0.15029,3387.4,3387.3,7.65612192]
[1722243921171,2.36088,3388.6,3387.3,7.65612192]
[1722243921172,1.07,3388.7,3388.3,2.4475]
[1722243921519,4.52777178,3389.1,3388.3,4.80855]
[1722243921748,1.07,3388.7,3388.3,4.80855]
[1722243921949,1.07,3388.7,3388.4,0.716973]
[1722243922313,1.07,3388.7,3388.5,0.05901409]
[1722243922659,1.07,3388.7,3388.4,0.716973]
[1722243923019,1.07,3388.5,3388.4,0.716973]
[1722243923361,4.52769315,3389.2,3388.4,0.716973]
[1722243923510,3.30527073,3389.2,3388.5,0.05901319]
[1722243923715,1.07,3388.6,3388.5,0.05901319]
[1722243923957,1.07,3388.6,3388.4,2.36099]
[1722243924259,1.07,3388.6,3388.3,2.4475]
[1722243924445,1.07,3388.4,3388.3,2.4475]
[1722243926052,1.07,3388.4,3387.9,9.7226]
[1722243926260,2.3608,3388.7,3388.0,1.208394]
[1722243926261,1.07,3388.2,3388.0,1.208394]
[1722243927621,1.07,3388.2,3387.5,34.23836517]
[1722243927622,0.05910708,3388.1,3387.5,34.23836517]
[1722243927814,0.05910708,3388.1,3387.5,2.4905]
[1722243927815,1.07,3387.6,3387.5,2.4905]
[1722243929557,2.36135,3387.9,3387.5,2.4905]
[1722243929760,2.36128,3388.0,3387.6,0.05903573]
[1722243929932,1.07,3387.8,3387.5,2.4905]
[1722243930442,1.07,3387.6,3387.5,2.4905]
[1722243931743,3.43155,3387.6,3387.5,2.4905]
[1722243932540,3.43155,3387.6,3387.1,2.4827]
[1722243932722,1.07,3387.3,3387.1,5.39869652]
[1722243932923,1.07,3387.5,3387.1,5.39869652]
[1722243936955,0.06889552,3387.4,3387.1,5.39869652]
[1722243937357,1.07,3387.5,3387.2,2.71285917]
[1722243937884,0.06891881,3387.4,3387.2,2.71285917]
[1722243938377,0.06884667,3387.3,3387.2,2.71285917]
[1722243938671,3.43167,3387.5,3387.2,2.71285917]
[1722243938870,0.06886995,3387.3,3387.2,2.71285917]
[1722243939043,3.43167,3387.5,3387.2,2.71285917]
[1722243939229,0.06886995,3387.3,3387.2,2.71285917]
[1722243939422,3.43167,3387.5,3387.2,2.71285917]
[1722243939627,0.06886995,3387.3,3387.1,2.4827]
[1722243939826,3.43167,3387.5,3387.1,2.4827]
[1722243940028,0.06879783,3387.2,3387.1,2.4827]
[1722243940223,1.07,3387.5,3387.1,2.4827]
[1722243940536,0.06879783,3387.2,3387.1,2.4827]
[1722243940734,1.07,3387.5,3387.1,4.90396652]
[1722243941157,0.06893527,3387.4,3387.1,4.90396652]
[1722243942062,1.07,3387.5,3387.1,4.90396652]
[1722243942500,0.06893527,3387.4,3387.1,4.90396652]
[1722243942801,1.07,3387.5,3387.1,4.90396652]
[1722243942961,0.06875013,3387.3,3387.1,4.90396652]
[1722243943303,1.07,3387.5,3387.1,4.90396652]
[1722243943304,3.43163,3387.5,3387.1,4.90396652]
[1722243943609,0.06884214,3387.4,3387.1,2.4827]
[1722243943963,1.07,3387.5,3387.1,2.4827]
[1722243944164,0.06884214,3387.4,3387.1,2.4827]
[1722243947707,3.43162,3387.5,3387.1,2.4827]
[1722243948067,0.06825871,3387.4,3387.1,2.4827]
[1722243948297,0.06825871,3387.4,3387.1,4.66775652]
[1722243950807,3.43162,3387.5,3387.1,4.66775652]
[1722243951774,3.43162,3387.5,3387.1,2.4827]
[1722243951980,2.36176,3387.3,3387.1,2.4827]
[1722243952179,0.06805027,3387.2,3387.1,2.4827]
[1722243952364,2.36176,3387.3,3387.1,2.4827]
[1722243952568,0.05910708,3387.8,3387.1,2.4827]
[1722243952871,2.36122,3388.1,3387.2,2.472]
[1722243953177,2.36113,3388.2,3387.4,2.472]
[1722243953377,0.06599888,3388.1,3387.4,2.472]
[1722243953606,0.06599888,3388.1,3387.4,2.36169]
[1722243953905,1.07,3388.4,3387.5,2.601069]
[1722243954105,3.49750539,3388.0,3387.5,2.2579]
[1722243954271,3.43129,3388.0,3387.5,2.2579]
[1722243955501,0.06615585,3387.9,3387.5,2.2579]
[1722243956116,0.06615585,3387.9,3387.5,2.36161]
[1722243956324,0.06615585,3387.9,3387.6,2.3589]
[1722243956475,2.16705242,3389.0,3388.1,2.3589]
[1722243956673,3.23705242,3389.9,3389.2,2.36038]
[1722243956898,1.07,3389.9,3389.3,0.05900038]
[1722243957804,1.07,3389.9,3389.2,2.36039]
[1722243957969,1.07,3389.9,3389.3,0.05899875]
[1722243958671,1.07,3389.9,3389.2,3.04396675]
[1722243959392,2.35988,3390.0,3389.2,3.04396675]
[1722243959997,2.35979,3390.2,3389.3,2.41935877]
[1722243960306,2.41889708,3390.2,3389.4,4.75228]
[1722243960638,2.35979,3390.2,3389.4,4.75228]
[1722243960976,2.35981,3390.1,3389.4,2.392]
[1722243961892,2.35995,3389.9,3389.4,2.392]
[1722243963128,2.41892708,3390.1,3389.4,2.392]
[1722243964115,0.04851528,3389.7,3389.4,2.392]
[1722243964318,0.05910708,3390.1,3389.4,2.392]
[1722243964537,0.04843634,3389.6,3389.4,5.463575]
[1722243964835,2.35978,3390.2,3389.4,3.103285]
[1722243965040,2.50961,3390.8,3389.7,2.36009]
[1722243965041,2.50963,3390.8,3389.7,2.36009]
[1722243965348,0.05910708,3390.7,3389.5,2.36017]
[1722243965499,2.35965,3390.4,3389.5,2.36017]
[1722243965678,2.35965,3390.4,3389.6,2.41914415]
[1722243966039,2.35952,3390.6,3389.7,2.70495599]
[1722243966184,2.50962,3390.8,3389.7,2.70495599]
[1722243966185,2.35942,3390.7,3389.7,5.06504599]
[1722243966385,2.41854708,3390.7,3389.7,2.70495599]
[1722243966586,2.35946,3390.6,3389.7,2.70495599]
[1722243966926,2.35954,3390.5,3389.7,2.70495599]
[1722243967146,2.35954,3390.5,3389.1,9.79047]
[1722243967147,0.2377,3389.7,3387.7,7.902051]
[1722243967286,2.36085,3388.7,3387.8,2.2505]
[1722243967492,2.564,3389.0,3387.8,2.2505]
[1722243967493,2.36065,3388.9,3387.8,2.2505]
[1722243967800,0.0482346,3388.8,3388.2,2.36113]
[1722243968023,0.0482346,3388.8,3388.3,0.05901621]
[1722243968180,0.04808269,3388.7,3388.3,0.05901621]
[1722243968381,2.41950708,3389.3,3388.3,0.05901621]
[1722243968628,2.3604,3389.3,3388.5,2.36092]
[1722243968829,2.36023,3389.5,3388.6,0.05901185]
[1722243968830,0.048426,3389.2,3388.6,0.05901185]
[1722243969126,2.36031,3389.4,3388.6,0.05901185]
[1722243969328,0.04807252,3389.1,3388.8,2.36071]
[1722243969535,2.36014,3389.7,3388.9,0.05900476]
[1722243969917,0.04851346,3389.6,3388.9,0.05900476]
[1722243971296,0.04851346,3389.6,3388.9,3.13508124]
[1722243971625,0.04851346,3389.6,3389.0,2.36056]
[1722243971777,0.04851346,3389.6,3388.9,0.77444124]
[1722243971778,0.04817525,3389.5,3388.9,0.71543648]
[1722243971979,0.04817525,3389.5,3388.8,5.36071]
[1722243972197,0.04817525,3389.5,3388.8,3.0]
[1722243972198,2.36024,3389.5,3388.8,3.0]
[1722243972428,0.04814117,3389.4,3388.7,4.73458]
[1722243972592,0.04814117,3389.4,3388.8,5.2606]
[1722243972793,0.04814117,3389.4,3388.9,0.82606]
[1722243972995,0.00449194,3389.8,3388.9,0.82606]
[1722243973318,0.00449194,3389.8,3389.0,2.41955888]
[1722243973519,0.04860441,3389.7,3389.0,2.36056]
[1722243973733,2.40869441,3389.7,3388.9,0.82606]
[1722243974242,2.36025,3389.5,3388.9,0.82606]
[1722243974740,2.40693188,3389.4,3388.8,2.2606]
[1722243974901,0.04663188,3389.4,3388.8,2.2606]
[1722243975084,2.36016,3389.6,3388.8,2.2606]
[1722243975280,0.04647013,3389.3,3388.8,2.2606]
[1722243975489,2.36016,3389.6,3388.8,2.2606]
[1722243975703,0.04640147,3389.2,3388.9,2.63500752]
[1722243975931,2.36016,3389.6,3388.9,2.63500752]
[1722243976092,0.04633281,3389.1,3388.9,2.63500752]
[1722243976292,2.36024,3389.5,3388.9,2.63500752]
[1722243976690,0.00449194,3389.8,3388.9,2.63500752]
[1722243976691,0.04653879,3389.4,3388.9,2.63500752]
[1722243976895,0.04653879,3389.4,3389.0,2.89849427]
[1722243977241,2.41920708,3389.7,3389.0,2.89849427]
[1722243977545,2.3603,3389.4,3388.8,2.2606]
[1722243977742,2.36039,3389.3,3388.8,2.2606]
[1722243978096,2.36017,3389.6,3388.8,2.2606]
[1722243978296,2.36031,3389.4,3388.8,2.2606]
[1722243978612,2.36017,3389.6,3388.8,2.2606]
[1722243978613,2.40685728,3389.5,3388.8,2.2606]
[1722243978931,2.36017,3389.6,3388.8,2.2606]
[1722243978932,2.40682863,3389.4,3388.8,2.2606]
[1722243979131,0.04652863,3389.4,3388.8,2.2606]
[1722243979434,0.04652863,3389.4,3388.9,0.05900914]
[1722243979638,2.36023,3389.5,3388.9,0.05900914]
[1722243979932,2.3602,3389.6,3388.9,0.05900914]
[1722243980232,2.36024,3389.5,3388.9,0.05900914]
[1722243981030,2.36017,3389.6,3388.9,0.05900914]
[1722243981354,2.36017,3389.6,3388.8,24.58212225]
[1722243981355,0.05910708,3389.5,3388.8,21.62846517]
[1722243981503,2.36044,3389.2,3388.8,21.62846517]
[1722243981902,0.05910708,3389.5,3388.8,2.2606]
[1722243981903,2.40694451,3389.1,3388.8,2.2606]
[1722243982334,2.36054,3389.1,3388.8,2.2606]
[1722243983400,0.04636027,3389.0,3388.8,2.2606]
[1722243983951,0.04629161,3388.9,3388.8,2.2606]
[1722243984102,2.41947708,3389.3,3388.8,2.2606]
[1722243984511,0.04652087,3389.2,3388.8,2.2606]
[1722243984839,2.36037,3389.3,3388.8,2.2606]
[1722243985342,0.04652087,3389.2,3388.8,2.2606]
[1722243985545,2.36037,3389.3,3388.8,2.2606]
[1722243985748,0.04645221,3389.1,3388.8,2.2606]
[1722243985929,2.36044,3389.2,3388.8,2.2606]
[1722243986129,0.04640683,3389.0,3388.8,2.2606]
[1722243986336,2.36044,3389.2,3388.8,2.2606]
[1722243986538,0.04633816,3388.9,3388.8,2.2606]
[1722243986761,2.36044,3389.2,3388.8,2.2606]
[1722243986946,2.36035,3389.4,3388.8,2.2606]
[1722243987147,0.04647549,3389.1,3388.8,2.2606]
[1722243987513,2.36044,3389.2,3388.8,2.2606]
[1722243987916,0.04647549,3389.1,3388.8,2.2606]
[1722243988361,2.36031,3389.4,3388.8,2.2606]
[1722243988577,0.04646354,3389.0,3388.8,2.2606]
[1722243988757,2.36031,3389.4,3388.8,2.2606]
[1722243988941,0.04639487,3388.9,3388.8,2.2606]
[1722243989171,2.36037,3389.3,3388.8,2.2606]
[1722243989552,0.04662413,3389.2,3388.8,2.2606]
[1722243989962,2.35997,3389.9,3388.9,2.36058]
[1722243990284,2.35988,3390.0,3389.2,2.36042]
[1722243990486,0.04528568,3389.8,3389.3,0.0590009]
[1722243990696,0.04537758,3389.9,3389.4,2.3299]
[1722243990903,0.04524032,3389.7,3389.5,0.05900074]
[1722243991100,0.04510839,3389.8,3389.5,0.05900074]
[1722243991300,0.04497111,3389.6,3389.5,5.10055665]
[1722243991582,2.35971,3390.3,3389.5,0.38016665]
[1722243991886,2.36001,3389.9,3389.4,2.3299]
[1722243992387,2.40555037,3389.8,3389.4,2.3299]
[1722243992560,2.3602,3389.6,3389.4,2.3299]
[1722243992763,2.36023,3389.5,3389.4,2.3299]
[1722243993064,2.40551447,3389.5,3389.4,2.3299]
[1722243993263,2.40551447,3389.5,3389.3,19.36786517]
[1722243993264,2.36029,3389.4,3389.3,19.36786517]
[1722243993467,2.40553689,3389.4,3389.3,19.36786517]
[1722243993668,0.05910708,3389.6,3389.0,2.3408]
[1722243993963,2.36033,3389.4,3389.0,2.3408]
[1722243994163,2.41943708,3389.4,3389.0,2.3408]
[1722243994364,0.05910708,3389.4,3389.0,2.3408]
[1722243994563,2.36049,3389.2,3389.0,2.3408]
[1722243994770,0.05910708,3389.4,3389.0,2.3408]
[1722243994771,2.41945708,3389.4,3389.0,2.3408]
[1722243994989,0.04494785,3389.1,3389.0,2.3408]
[1722243995188,2.41941708,3389.4,3389.0,2.3408]
[1722243995595,0.04502879,3389.3,3389.0,2.3408]
[1722243997156,2.36018,3389.6,3389.0,2.39980627]
[1722243997356,0.04498226,3389.2,3389.0,2.39980627]
[1722243997556,2.36018,3389.6,3389.0,2.8758579]
[1722243997789,0.04491361,3389.1,3389.0,2.39980627]
[1722243997991,2.36023,3389.5,3389.0,2.3408]
[1722243998207,0.04491936,3389.1,3389.0,2.3408]
[1722243998380,2.36023,3389.5,3389.0,2.3408]
[1722243998577,0.04491821,3389.1,3389.0,2.3408]
[1722243998782,2.36023,3389.5,3389.0,2.3408]
[1722243998989,0.04489634,3389.1,3389.0,2.3408]
[1722243999207,2.3603,3389.4,3389.0,2.3408]
[1722243999605,0.04505692,3389.3,3389.0,2.3408]
[1722243999904,2.36048,3389.2,3389.0,2.3408]
[1722244000104,2.3605,3389.1,3389.0,2.3408]
[1722244000271,2.40542422,3389.1,3389.0,2.3408]
[1722244001168,2.40542422,3389.1,3388.8,19.36786517]
[1722244001169,2.36064,3388.9,3388.8,19.36786517]
[1722244001607,2.40542601,3388.9,3388.8,19.36786517]
[1722244001859,4.76606601,3388.9,3388.8,19.36786517]
[1722244001976,4.76606601,3388.9,3388.2,19.36786517]
[1722244002310,4.76606601,3388.9,3388.1,2.2964]
[1722244002311,2.36092,3388.6,3388.1,2.2964]
[1722244002697,2.36104,3388.4,3388.1,2.2964]
[1722244003120,2.36113,3388.2,3388.1,2.2964]
[1722244003300,0.04432474,3388.3,3388.1,2.2964]
[1722244003596,0.04422383,3388.2,3388.1,2.2964]
[1722244003998,2.36107,3388.3,3388.1,2.2964]
[1722244004199,0.04422383,3388.2,3388.1,2.2964]
[1722244004507,2.42007708,3388.5,3388.1,2.2964]
[1722244004708,0.0441939,3388.2,3388.1,2.2964]
[1722244005010,2.42007708,3388.5,3388.1,2.2964]
[1722244005209,0.0441939,3388.2,3388.1,2.2964]
[1722244005402,2.42007708,3388.5,3388.1,2.2964]
[1722244005627,0.04413292,3388.2,3388.1,2.2964]
[1722244005913,0.0440398,3388.2,3388.1,2.2964]
[1722244006278,2.36107,3388.3,3388.1,2.2964]
[1722244006605,0.0440398,3388.2,3388.1,2.2964]
[1722244007318,2.36107,3388.3,3388.1,2.2964]
[1722244007611,0.04406308,3388.2,3388.1,2.2964]
[1722244008311,2.42007708,3388.5,3388.1,2.2964]
[1722244008514,0.04408636,3388.2,3388.1,2.2964]
[1722244008687,2.42007708,3388.5,3388.1,2.2964]
[1722244008888,0.04408636,3388.2,3388.1,2.29190806]
[1722244009115,2.42007708,3388.5,3388.1,2.29190806]
[1722244009289,0.04408636,3388.2,3388.1,2.29190806]
[1722244009496,0.05910708,3388.5,3388.1,2.29190806]
[1722244009795,0.04408636,3388.2,3388.1,2.29190806]
[1722244009995,2.36092,3388.5,3388.1,2.29190806]
[1722244010195,0.04408636,3388.2,3388.1,2.29190806]
[1722244010722,2.36092,3388.5,3388.1,2.29190806]
[1722244011024,0.04408636,3388.2,3388.1,2.29190806]
[1722244011225,2.36092,3388.5,3388.1,2.29190806]
[1722244011823,0.04424702,3388.4,3388.1,2.29190806]
[1722244012124,0.1033541,3388.4,3388.1,2.29190806]
[1722244012627,0.04424702,3388.4,3388.1,2.29190806]
[1722244012920,0.04424702,3388.4,3387.8,19.36786517]
[1722244013223,0.05910708,3388.3,3387.8,19.36786517]
[1722244013425,2.36113,3388.2,3387.8,19.36786517]
[1722244013628,0.04413292,3388.2,3387.8,19.36786517]
[1722244013811,0.04413292,3388.2,3387.6,19.36786517]
[1722244014014,0.05910708,3388.3,3387.6,19.36786517]
[1722244014324,0.04413292,3388.2,3387.7,5.25394652]
[1722244014621,0.04413292,3388.2,3387.8,2.42037939]
[1722244014798,2.41999708,3388.6,3387.9,2.2619]
[1722244015004,0.04390958,3388.1,3387.9,2.2619]
[1722244015199,2.41999708,3388.6,3387.9,2.2619]
[1722244015400,2.36093,3388.5,3387.9,2.2619]
[1722244015651,2.40513762,3388.5,3387.9,2.2619]
[1722244016522,0.04420762,3388.5,3387.9,4.62321]
[1722244016730,0.04420762,3388.5,3388.0,2.42029796]
[1722244018947,2.36034,3389.4,3388.6,2.41982174]
[1722244019637,3.05910708,3389.5,3388.6,2.41982174]
[1722244019857,2.564,3389.6,3389.0,4.63736]
[1722244020493,0.05910708,3389.7,3389.0,4.63736]
[1722244020771,0.05910708,3389.7,3389.0,5.337166]
[1722244020950,0.05910708,3389.7,3389.0,2.976606]
[1722244020951,2.36017,3389.6,3389.0,2.976606]
[1722244021148,2.36023,3389.5,3389.0,2.2768]
[1722244021459,2.36037,3389.3,3388.4,19.36786517]
[1722244021609,2.36023,3389.5,3388.5,2.2768]
[1722244021610,2.41933708,3389.5,3388.5,2.2768]
[1722244021808,2.41933708,3389.5,3388.7,2.36078]
[1722244022008,2.41933708,3389.5,3388.5,2.2768]
[1722244022009,2.36034,3389.4,3388.5,2.2768]
[1722244022202,2.36034,3389.4,3388.6,4.76141552]
[1722244022203,0.05910708,3389.4,3388.6,4.76141552]
[1722244022764,2.36037,3389.3,3388.6,2.40056552]
[1722244023729,2.36044,3389.2,3388.6,2.40056552]
[1722244024036,2.36044,3389.2,3388.5,2.2768]
[1722244024233,2.41965708,3389.1,3388.5,2.2768]
[1722244024623,0.04485495,3389.0,3388.5,2.2768]
[1722244025443,0.04485495,3389.0,3388.6,0.05901753]
[1722244025644,0.04485495,3389.0,3388.9,2.3804]
[1722244025806,2.564,3389.6,3388.9,4.79998868]
[1722244026012,0.04501821,3389.5,3388.9,4.79998868]
[1722244026426,0.04497864,3389.4,3388.9,4.79998868]
[1722244026630,2.3601,3389.7,3388.9,4.79998868]
[1722244026827,0.04514867,3389.6,3388.9,4.79998868]
[1722244027461,2.40530867,3389.6,3388.9,4.79998868]
[1722244028644,2.36034,3389.4,3388.9,2.3804]
[1722244028950,0.04494274,3389.3,3388.9,2.3804]
[1722244029450,0.05910708,3389.5,3388.9,2.3804]
[1722244029651,0.04505655,3389.4,3388.9,2.3804]
[1722244030016,0.04505655,3389.4,3388.9,4.74104]
[1722244030216,0.04505655,3389.4,3389.0,0.710174]
[1722244030449,0.30894551,3389.8,3389.4,2.2604]
[1722244030647,2.55810409,3390.3,3389.4,2.2604]
[1722244030648,0.04518614,3389.7,3389.4,4.67966951]
[1722244030948,2.35983,3390.1,3389.4,4.67966951]
[1722244031361,4.72959076,3390.3,3389.5,2.36022]
[1722244031362,0.04501973,3390.0,3389.5,2.36022]
[1722244031851,0.04583614,3389.9,3389.4,2.31939951]
[1722244032058,2.35996,3389.9,3389.4,2.2604]
[1722244032223,2.3601,3389.7,3389.4,2.2604]
[1722244032416,0.10487576,3389.8,3389.4,2.2604]
[1722244032417,0.04563144,3389.6,3389.4,2.2604]
[1722244032618,0.05910708,3389.8,3389.4,2.2604]
[1722244032819,0.04570427,3389.7,3389.4,2.2604]
[1722244033014,0.05910708,3389.8,3389.4,2.2604]
[1722244033217,0.04586713,3389.7,3389.4,2.2604]
[1722244033519,2.3601,3389.7,3389.4,2.2604]
[1722244033855,0.04579851,3389.6,3389.4,2.2604]
[1722244034662,2.41913708,3389.8,3389.4,2.2604]
[1722244035024,0.04586713,3389.7,3389.4,2.2604]
[1722244035355,0.05910708,3389.8,3389.4,2.2604]
[1722244035534,0.04556164,3389.6,3389.4,2.2604]
[1722244035730,0.05910708,3389.8,3389.4,2.2604]
[1722244035933,0.0452925,3389.5,3389.4,2.2604]
[1722244036156,0.05910708,3389.8,3389.4,2.2604]